fUST/lending_fUST_20250611
["ID","MTS","AMOUNT","RATE_DAILY","PERIOD"]
[365388802,1749642641278,-460.0,0.00022465,4]
[365388803,1749642641288,-1048.68,0.00022465,4]
[365388804,1749642641297,-1857.09,0.00022465,4]
[365388805,1749642641307,-1842.48,0.00022465,4]
[365388806,1749642641317,-1265.64,0.00022465,4]
[365388807,1749642641327,-2341.33,0.00022465,4]
[365388808,1749642641336,-1540.56,0.00022465,4]
[365388809,1749642641346,-151.0,0.00022465,7]
[365388810,1749642641355,-460.0,0.00022465,4]
[365388811,1749642641365,-1184.01,0.00022465,4]
[365388812,1749642641375,-460.0,0.00022465,4]
[365388813,1749642641384,-1722.6,0.00022465,4]
[365388814,1749642641393,-1869.72,0.00022465,4]
[365388815,1749642641403,-1007.48,0.00022465,4]
[365388816,1749642641412,-2742.08,0.00022465,4]
[365388817,1749642641422,-601.52,0.00022465,4]
[365388818,1749642641431,-757.79,0.00022465,4]
[365388819,1749642641440,-997.82,0.00022465,4]
[365388820,1749642641449,-1176.56,0.00022465,4]
[365388821,1749642641458,-61777.79,0.000225,2]
[365388822,1749642641468,-151.0,0.000225,7]
[365388823,1749642641477,-151.0,0.000225,7]
[365388824,1749642641486,-151.0,0.000225,7]
[365388825,1749642641495,-151.0,0.000225,7]
[365388826,1749642641505,-200.0,0.00022506,7]
[365388827,1749642641514,-200.0,0.00022506,7]
[365388828,1749642641525,-251.76646652,0.00022506,7]
[365388829,1749642641535,-1000.0,0.00022521,2]
[365388830,1749642641545,-158.5050251,0.00022521,2]
[365388831,1749642641554,-573.3540349,0.00022521,2]
[365388832,1749642641563,-153.0,0.00022521,2]
[365388833,1749642641573,-153.0,0.00022521,2]
[365388834,1749642641583,-2980.57800506,0.00022521,7]
[365388835,1749642641592,-5000.0,0.00022533,2]
[365388836,1749642641601,-151.969126,0.00022533,7]
[365388837,1749642641612,-444.01059908,0.00022538,2]
[365388838,1749642641621,-1636.187062,0.00022539,3]
[365388839,1749642641632,-151.0,0.00022561,7]
[365388840,1749642641641,-4136.545818,0.00022561,2]
[365388841,1749642641651,-4136.545818,0.00022561,2]
[365388842,1749642641661,-151.0,0.000226,9]
[365388843,1749642641670,-935.52355721,0.00022602,2]
[365388844,1749642641680,-1010.6705109,0.00022602,2]
[365388845,1749642641690,-1500.0,0.00022608,2]
[365388846,1749642641700,-1500.0,0.00022608,2]
[365388847,1749642641709,-1500.0,0.00022608,2]
[365388848,1749642641719,-1500.0,0.00022608,2]
[365388849,1749642641728,-1500.0,0.00022608,2]
[365388850,1749642641738,-1500.0,0.00022608,2]
[365388851,1749642641747,-1381.0,0.00022628,2]
[365388852,1749642641757,-5888.0,0.00022631,2]
[365388853,1749642641766,-151.0,0.00022631,7]
[365388854,1749642641776,-1281.496811,0.00022646,7]
[365388855,1749642641786,-1281.496811,0.00022646,7]
[365388856,1749642641796,-151.0,0.00022646,7]
[365388857,1749642641806,-258.765956,0.00022646,7]
[365388858,1749642641816,-258.765956,0.00022646,7]
[365388859,1749642641826,-225.116464,0.00022646,7]
[365388860,1749642641835,-225.116464,0.00022646,7]
[365388861,1749642641845,-151.0,0.00022646,7]
[365388862,1749642641854,-151.0,0.00022646,7]
[365388863,1749642641864,-151.0,0.00022646,7]
[365388864,1749642641878,-152.070046,0.00022646,7]
[365388865,1749642641888,-177.0,0.00022646,2]
[365388866,1749642641897,-151.931106,0.00022653,7]
[365388867,1749642641907,-151.0,0.00022653,7]
[365388868,1749642641918,-151.0,0.00022653,7]
[365388869,1749642641927,-195.87883351,0.00022666,2]
[365388870,1749642641936,-1500.0,0.00022681,2]
[365388871,1749642641947,-800.0,0.00022694,2]
[365388872,1749642641956,-1381.0,0.00022705,2]
[365388873,1749642641966,-180.391413,0.00022705,7]
[365388874,1749642641975,-180.391413,0.00022705,7]
[365388875,1749642641986,-151.0,0.00022705,7]
[365388876,1749642641995,-1500.0,0.00022707,2]
[365388877,1749642642005,-1500.0,0.00022707,2]
[365388878,1749642642015,-1500.0,0.00022707,2]
[365388879,1749642642024,-5888.0,0.00022716,2]
[365388880,1749642642035,-151.0,0.00022731,7]
[365388881,1749642642045,-151.0,0.00022731,7]
[365388882,1749642642055,-151.0,0.00022731,7]
[365388883,1749642642065,-1131.021748,0.00022731,7]
[365388884,1749642642075,-1131.021748,0.00022731,7]
[365388885,1749642642085,-1745.0,0.00022731,3]
[365388886,1749642642094,-1745.0,0.00022731,3]
[365388887,1749642642104,-1745.0,0.00022731,3]
[365388888,1749642642113,-1745.0,0.00022731,3]
[365388889,1749642642123,-1745.0,0.00022731,3]
[365388890,1749642642132,-1745.0,0.00022731,3]
[365388891,1749642642141,-1745.0,0.00022731,3]
[365388892,1749642642151,-1745.0,0.00022731,3]
[365388893,1749642642160,-171.0,0.00022731,3]
[365388894,1749642642170,-1745.0,0.00022731,3]
[365388895,1749642642179,-271.03904922,0.00022731,3]
[365388896,1749642642189,-1745.0,0.00022731,3]
[365388897,1749642642198,-1745.0,0.00022731,3]
[365388898,1749642642208,-1745.0,0.00022731,3]
[365388899,1749642642217,-1745.0,0.00022731,3]
[365388900,1749642642228,-1745.0,0.00022731,3]
[365388901,1749642642238,-1745.0,0.00022731,3]
[365388902,1749642642248,-155.43081847,0.00022731,3]
[365388903,1749642642257,-1745.0,0.00022731,3]
[365388904,1749642642267,-1745.0,0.00022731,3]
[365388905,1749642642277,-1745.0,0.00022731,3]
[365388906,1749642642286,-1745.0,0.00022731,3]
[365388907,1749642642296,-1745.0,0.00022731,3]
[365388908,1749642642305,-1745.0,0.00022731,3]
[365388909,1749642642314,-1745.0,0.00022731,3]
[365388910,1749642642324,-1745.0,0.00022731,3]
[365388911,1749642642333,-1030.1030757,0.00022731,3]
[365388913,1749642642342,-151.0,0.00022731,3]
[365388914,1749642642351,-152.8942424,0.00022731,3]
[365388915,1749642642360,-317.0,0.00022731,3]
[365388916,1749642642369,-317.0,0.00022731,3]
[365388917,1749642642378,-317.0,0.00022731,3]
[365388918,1749642642387,-317.0,0.00022731,3]
[365388919,1749642642396,-317.0,0.00022731,3]
[365388920,1749642642405,-317.0,0.00022731,3]
[365388921,1749642642414,-317.0,0.00022731,3]
[365388922,1749642642423,-317.0,0.00022731,3]
[365388923,1749642642432,-317.0,0.00022731,3]
[365388925,1749642642441,-317.0,0.00022731,3]
[365388926,1749642642450,-322.24757634,0.00022731,3]
[365388927,1749642642459,-151.0,0.00022739,7]
[365388928,1749642642468,-151.0,0.00022739,7]
[365388929,1749642642478,-357.042799,0.00022739,7]
[365388930,1749642642487,-357.042799,0.00022739,7]
[365388932,1749642642585,-151.0,0.00022739,7]
[365388933,1749642642595,-151.0,0.00022739,7]
[365388934,1749642642605,-151.0,0.00022739,7]
[365388935,1749642642615,-152.860383,0.00022739,7]
[365388936,1749642642625,-1942.92,0.00022739,4]
[365388937,1749642642636,-173.344042,0.00022739,7]
[365388938,1749642642646,-173.344042,0.00022739,7]
[365388939,1749642642656,-905.12,0.00022739,4]
[365388940,1749642642666,-460.0,0.00022739,4]
[365388941,1749642642675,-455.38,0.00022739,4]
[365388942,1749642642684,-460.0,0.00022739,4]
[365388943,1749642642693,-272.24610709,0.00022739,4]
[365388944,1749642642703,-557.8,0.00022739,4]
[365388945,1749642642713,-460.0,0.00022739,4]
[365388946,1749642642723,-460.0,0.00022739,4]
[365388947,1749642642732,-460.0,0.00022739,2]
[365388948,1749642642742,-2694.74,0.00022739,4]
[365388949,1749642642751,-680.95,0.00022739,4]
[365388950,1749642642761,-460.0,0.00022739,4]
[365388951,1749642642771,-801.77,0.00022739,4]
[365388953,1749642642781,-460.0,0.00022739,4]
[365388955,1749642642791,-1048.68,0.00022739,4]
[365388957,1749642642800,-1857.09,0.00022739,4]
[365388959,1749642642810,-1842.48,0.00022739,4]
[365388961,1749642642819,-1265.64,0.00022739,4]
[365388962,1749642642829,-2341.33,0.00022739,4]
[365388963,1749642642838,-1540.56,0.00022739,4]
[365388964,1749642642847,-460.0,0.00022739,4]
[365388965,1749642642857,-1184.01,0.00022739,4]
[365388966,1749642642866,-460.0,0.00022739,4]
[365388967,1749642642880,-1722.6,0.00022739,4]
[365388968,1749642642890,-1869.72,0.00022739,4]
[365388969,1749642642899,-1007.48,0.00022739,4]
[365388970,1749642642908,-2742.08,0.00022739,4]
[365388971,1749642642918,-601.52,0.00022739,4]
[365388972,1749642642927,-757.79,0.00022739,4]
[365388974,1749642642936,-997.82,0.00022739,4]
[365388975,1749642642946,-1176.56,0.00022739,4]
[365388977,1749642642956,-2980.57800506,0.00022762,7]
[365388978,1749642642965,-500.0,0.00022766,2]
[365388979,1749642642975,-958.88576069,0.0002277,2]
[365388980,1749642642984,-6661.50502107,0.0002277,2]
[365388981,1749642642994,-177.0,0.00022779,2]
[365388982,1749642643004,-1381.0,0.00022784,2]
[365388983,1749642643013,-500.0,0.00022787,2]
[365388984,1749642643023,-151.0,0.000228,10]
[365388985,1749642643033,-2963.0,0.000228,2]
[365388986,1749642643042,-2963.0,0.000228,2]
[365388987,1749642643052,-2963.0,0.000228,2]
[365388988,1749642643062,-2963.0,0.000228,2]
[365388989,1749642643071,-2963.0,0.000228,2]
[365388990,1749642643081,-2963.0,0.000228,2]
[365388992,1749642643091,-2963.0,0.000228,2]
[365388993,1749642643100,-2963.0,0.000228,2]
[365388994,1749642643110,-2963.0,0.000228,2]
[365388995,1749642643120,-2963.0,0.000228,2]
[365388996,1749642643130,-969.196,0.00022805,2]
[365388997,1749642643140,-2160.0,0.00022805,2]
[365388998,1749642643150,-653.0,0.00022805,2]
[365388999,1749642643160,-405.0,0.00022805,2]
[365389000,1749642643170,-150.108,0.00022805,2]
[365389001,1749642643180,-405.0,0.00022805,2]
[365389002,1749642643191,-150.113,0.00022805,2]
[365389003,1749642643200,-215.0738,0.00022806,2]
[365389004,1749642643210,-500.0,0.00022826,2]
[365389005,1749642643220,-1281.496811,0.00022828,7]
[365389006,1749642643230,-1281.496811,0.00022828,7]
[365389007,1749642643241,-151.0,0.00022828,7]
[365389008,1749642643250,-258.765956,0.00022828,7]
[365389009,1749642643260,-258.765956,0.00022828,7]
[365389010,1749642643270,-225.116464,0.00022828,7]
[365389011,1749642643279,-225.116464,0.00022828,7]
[365389012,1749642643290,-151.0,0.00022828,7]
[365389013,1749642643300,-182.923116,0.00022828,7]
[365389014,1749642643309,-157.218033,0.00022833,2]
[365389015,1749642643319,-500.0,0.00022837,2]
[365389016,1749642643329,-500.0,0.0002286,2]
[365389017,1749642643340,-500.0,0.00022868,2]
[365389018,1749642643350,-5888.0,0.0002287,2]
[365389019,1749642643361,-293.85068442,0.00022881,2]
[365389020,1749642643371,-500.0,0.00022885,2]
[365389021,1749642643380,-4136.545818,0.000229,2]
[365389022,1749642643390,-4136.545818,0.000229,2]
[365389023,1749642643400,-1000.0,0.000229,2]
[365389024,1749642643409,-209.781369,0.000229,7]
[365389025,1749642643419,-4605.42974714,0.000229,2]
[365389026,1749642643428,-267.730693,0.0002292,7]
[365389027,1749642643438,-500.0,0.00022922,2]
[365389028,1749642643448,-153.0,0.00022942,2]
[365389029,1749642643458,-153.0,0.00022942,2]
[365389030,1749642643467,-500.0,0.00022959,2]
[365389031,1749642643477,-501.89008847,0.00022973,2]
[365389032,1749642643487,-500.0,0.00022973,2]
[365389033,1749642643496,-500.70029255,0.00022973,2]
[365389034,1749642643505,-500.55031056,0.00022973,2]
[365389035,1749642643515,-258.5753109,0.00022973,2]
[365389036,1749642643525,-260.16520545,0.00022973,2]
[365389037,1749642643535,-500.0,0.00022973,2]
[365389038,1749642643544,-501.9396443,0.00022973,2]
[365389039,1749642643554,-501.21419481,0.00022973,2]
[365389040,1749642643564,-500.0,0.00022973,2]
[365389041,1749642643573,-500.0,0.00022973,2]
[365389042,1749642643583,-500.0,0.00022973,2]
[365389043,1749642643593,-258.56904983,0.00022973,2]
[365389044,1749642643603,-263.57627948,0.00022973,2]
[365389045,1749642643613,-500.9670821,0.00022973,2]
[365389046,1749642643623,-501.80618741,0.00022973,2]
[365389047,1749642643633,-500.0,0.00022973,2]
[365389048,1749642643643,-501.02704274,0.00022973,2]
[365389049,1749642643652,-501.12216744,0.00022973,2]
[365389050,1749642643661,-533.20656264,0.00022973,2]
[365389051,1749642643672,-262.97630049,0.00022973,2]
[365389052,1749642643682,-258.56904983,0.00022973,2]
[365389053,1749642643691,-258.57088933,0.00022973,2]
[365389054,1749642643702,-166.8771397,0.00022973,2]
[365389055,1749642643711,-500.0,0.00022973,2]
[365389056,1749642643721,-500.0,0.00022973,2]
[365389057,1749642643731,-500.0,0.00022973,2]
[365389058,1749642643741,-500.0,0.00022973,2]
[365389059,1749642643750,-500.0,0.00022973,2]
[365389060,1749642643759,-500.0,0.00022973,2]
[365389061,1749642643768,-171.70222987,0.00022973,2]
[365389062,1749642643778,-502.10277789,0.00022973,2]
[365389063,1749642643788,-519.48737973,0.00022973,2]
[365389064,1749642643798,-500.0,0.00022973,2]
[365389065,1749642643808,-500.0,0.00022973,2]
[365389066,1749642643817,-500.99252369,0.00022973,2]
[365389067,1749642643827,-501.42704905,0.00022973,2]
[365389068,1749642643837,-500.0,0.00022973,2]
[365389069,1749642643846,-503.11996169,0.00022973,2]
[365389070,1749642643856,-503.07298805,0.00022973,2]
[365389071,1749642643866,-500.0,0.00022973,2]
[365389072,1749642643878,-500.0,0.00022973,2]
[365389073,1749642643887,-507.7353454,0.00022973,2]
[365389074,1749642643897,-500.0,0.00022973,2]
[365389075,1749642643907,-501.81677955,0.00022973,2]
[365389076,1749642643916,-500.53643659,0.00022973,2]
[365389077,1749642643926,-500.0,0.00022973,2]
[365389078,1749642643935,-502.16032332,0.00022973,2]
[365389079,1749642643946,-500.53700056,0.00022973,2]
[365389080,1749642643956,-500.0,0.00022973,2]
[365389081,1749642643966,-212.26630749,0.00022973,2]
[365389082,1749642643975,-440.39440254,0.00022973,2]
[365389083,1749642643985,-515.82873039,0.00022973,2]
[365389084,1749642643994,-500.0,0.00022973,2]
[365389085,1749642644003,-500.0,0.00022973,2]
[365389086,1749642644013,-530.60777575,0.00022973,2]
[365389087,1749642644022,-600.0,0.00022973,2]
[365389088,1749642644031,-500.0,0.00022973,2]
[365389089,1749642644040,-501.60194083,0.00022973,2]
[365389090,1749642644050,-614.59868546,0.00022973,2]
[365389091,1749642644059,-502.58704421,0.00022973,2]
[365389092,1749642644069,-501.75466566,0.00022973,2]
[365389093,1749642644078,-500.0,0.00022973,2]
[365389094,1749642644088,-500.0,0.00022973,2]
[365389095,1749642644097,-500.88153464,0.00022973,2]
[365389096,1749642644107,-500.46089362,0.00022973,2]
[365389097,1749642644116,-624.0396983,0.00022973,2]
[365389098,1749642644126,-502.38820294,0.00022973,2]
[365389099,1749642644135,-500.0,0.00022973,2]
[365389100,1749642644145,-200.12013536,0.00022973,2]
[365389101,1749642644154,-500.0,0.00022973,2]
[365389102,1749642644163,-152.188611,0.00022973,7]
[365389103,1749642644172,-151.0,0.00022973,7]
[365389104,1749642644181,-151.0,0.00022973,7]
[365389105,1749642644191,-151.0,0.00022973,7]
[365389106,1749642644200,-151.0,0.00022973,7]
[365389107,1749642644209,-151.0,0.00022973,7]
[365389108,1749642644219,-151.0,0.00022973,7]
[365389109,1749642644228,-180.391413,0.00022973,7]
[365389110,1749642644238,-180.391413,0.00022973,7]
[365389111,1749642644247,-151.0,0.00022973,7]
[365389112,1749642644257,-151.0,0.00022973,7]
[365389113,1749642644266,-1131.021748,0.00022973,7]
[365389114,1749642644275,-1131.021748,0.00022973,7]
[365389115,1749642644284,-151.0,0.00022973,7]
[365389116,1749642644294,-151.0,0.00022973,7]
[365389117,1749642644304,-500.0,0.0002298,2]
[365389118,1749642644313,-1281.496811,0.00022996,7]
[365389119,1749642644323,-1281.496811,0.00022996,7]
[365389120,1749642644331,-151.0,0.00022996,7]
[365389121,1749642644341,-225.116464,0.00022996,7]
[365389122,1749642644350,-225.116464,0.00022996,7]
[365389123,1749642644359,-151.0,0.00022996,7]
[365389124,1749642644369,-1301.0200784,0.00022996,7]
[365389125,1749642644378,-500.0,0.00022999,2]
[365389126,1749642644387,-500.0,0.00022999,2]
[365389127,1749642644395,-500.0,0.00022999,2]
[365389128,1749642644404,-500.0,0.00022999,2]
[365389129,1749642644413,-500.0,0.00022999,2]
[365389130,1749642644423,-500.0,0.00022999,2]
[365389131,1749642644431,-594.87317368,0.00022999,2]
[365389132,1749642644441,-155.0,0.00022999,2]
[365389133,1749642644451,-200.0,0.00022999,2]
[365389134,1749642644460,-280.4839101,0.00022999,2]
[365389135,1749642644469,-200.0,0.00022999,2]
[365389136,1749642644479,-62824.98638272,0.00023,2]
[365389137,1749642644488,-24799.23218376,0.00023,2]
[365389138,1749642644497,-132755.41016221,0.00023,2]
[365389139,1749642644506,-248.6259382,0.00023,2]
[365389140,1749642644515,-1127.42139629,0.00023,2]
[365389141,1749642644525,-44157.08048027,0.00023,2]
[365389142,1749642644534,-10043.38789823,0.00023,2]
[365389143,1749642644544,-96728.65799071,0.00023,20]
[365389144,1749642644805,-27521.33310591,0.00023,20]
[365389145,1749642645005,-9516.88860598,0.00020193,2]
[365389146,1749642645015,-800.12512035,0.00020995,2]
[365389147,1749642645024,-5413.19881187,0.00023,20]
[365389148,1749642645036,-757.0,0.00023,20]
[365389149,1749642645049,-931.92733591,0.00023,20]
[365389150,1749642645061,-480.79998371,0.00023,20]
[365389151,1749642645073,-51772.24185188,0.00023,20]
[365389152,1749642645083,-1328.71905864,0.00023,2]
[365389153,1749642645092,-12150.94351892,0.00023,2]
[365389154,1749642645102,-285.774678,0.00023,7]
[365389155,1749642645111,-285.774678,0.00023,7]
[365389156,1749642645121,-151.0,0.00023,7]
[365389157,1749642645131,-151.0,0.00023,7]
[365389158,1749642645140,-284.969151,0.00023,7]
[365389159,1749642645150,-152.918798,0.00023,7]
[365389160,1749642645159,-151.0,0.00023,7]
[365389161,1749642645169,-300000.0,0.00023,30]
[365389162,1749642645179,-151.0,0.00023,7]
[365389163,1749642645188,-151.0,0.00023,7]
[365389164,1749642645198,-153.949274,0.00023,7]
[365389165,1749642645208,-151.0,0.00023,7]
[365389166,1749642645217,-280.23580309,0.00023,7]
[365389167,1749642645227,-356.841237,0.00023,7]
[365389168,1749642645237,-356.841237,0.00023,7]
[365389169,1749642645247,-356.841237,0.00023,7]
[365389170,1749642645256,-356.841237,0.00023,7]
[365389171,1749642645265,-356.841237,0.00023,7]
[365389172,1749642645275,-356.841237,0.00023,7]
[365389173,1749642645285,-151.0,0.00023,7]
[365389174,1749642645295,-151.0,0.00023,7]
[365389175,1749642645305,-151.0,0.00023,7]
[365389176,1749642645315,-151.0,0.00023,7]
[365389177,1749642645324,-151.0,0.00023,7]
[365389178,1749642645333,-151.0,0.00023,7]
[365389179,1749642645343,-151.0,0.00023,7]
[365389180,1749642645352,-187.267357,0.00023,7]
[365389181,1749642645362,-161.016394,0.00023,7]
[365389182,1749642645372,-151.0,0.00023,6]
[365389183,1749642645381,-3317.9,0.00023,7]
[365389184,1749642645391,-1281.496811,0.00023,7]
[365389185,1749642645401,-1281.496819,0.00023,7]
[365389186,1749642645411,-151.0,0.00023,7]
[365389187,1749642645420,-151.0,0.00023,7]
[365389188,1749642645430,-151.0,0.00023,7]
[365389189,1749642645439,-151.0,0.00023,7]
[365389190,1749642645448,-258.765956,0.00023,7]
[365389191,1749642645458,-258.765955,0.00023,7]
[365389192,1749642645467,-151.0,0.00023,7]
[365389193,1749642645476,-225.116464,0.00023,7]
[365389194,1749642645486,-225.116454,0.00023,7]
[365389195,1749642645495,-151.0,0.00023,7]
[365389197,1749642645504,-151.0,0.00023,7]
[365389199,1749642645514,-151.0,0.00023,7]
[365389200,1749642645524,-151.0,0.00023,7]
[365389201,1749642645533,-151.0,0.00023,7]
[365389202,1749642645543,-151.0,0.00023,7]
[365389203,1749642645552,-151.0,0.00023,7]
[365389204,1749642645562,-151.0,0.00023,7]
[365389205,1749642645571,-151.0,0.00023,7]
[365389206,1749642645580,-151.0,0.00023,7]
[365389207,1749642645589,-151.0,0.00023,7]
[365389208,1749642645598,-151.0,0.00023,7]
[365389209,1749642645608,-151.0,0.00023,7]
[365389210,1749642645617,-151.0,0.00023,7]
[365389211,1749642645627,-151.0,0.00023,7]
[365389212,1749642645637,-151.0,0.00023,7]
[365389213,1749642645646,-357.042799,0.00023,7]
[365389214,1749642645655,-357.042799,0.00023,7]
[365389216,1749642645665,-357.042799,0.00023,7]
[365389217,1749642645674,-357.042799,0.00023,7]
[365389218,1749642645683,-357.042799,0.00023,7]
[365389219,1749642645692,-357.042799,0.00023,7]
[365389220,1749642645701,-357.042799,0.00023,7]
[365389221,1749642645710,-357.042799,0.00023,7]
[365389222,1749642645719,-151.0,0.00023,7]
[365389223,1749642645729,-151.0,0.00023,7]
[365389224,1749642645738,-151.0,0.00023,7]
[365389225,1749642645747,-151.0,0.00023,7]
[365389226,1749642645756,-151.0,0.00023,7]
[365389227,1749642645765,-151.0,0.00023,7]
[365389229,1749642645774,-151.0,0.00023,7]
[365389230,1749642645784,-151.0,0.00023,7]
[365389231,1749642645795,-151.0,0.00023,7]
[365389232,1749642645805,-132646.39,0.00023,7]
[365389233,1749642645814,-151.0,0.00023,7]
[365389234,1749642645823,-151.0,0.00023,7]
[365389235,1749642645833,-155.314783,0.00023,7]
[365389236,1749642645842,-151.0,0.00023,7]
[365389237,1749642645852,-260.67427,0.00023,7]
[365389238,1749642645861,-151.0,0.00023,7]
[365389239,1749642645874,-151.0,0.00023,7]
[365389240,1749642645883,-151.0,0.00023,7]
[365389241,1749642645892,-151.0,0.00023,7]
[365389242,1749642645901,-151.0,0.00023,7]
[365389243,1749642645910,-151.0,0.00023,7]
[365389244,1749642645920,-151.0,0.00023,7]
[365389245,1749642645930,-151.0,0.00023,7]
[365389246,1749642645939,-936.47,0.00023,7]
[365389247,1749642645950,-151.0,0.00023,7]
[365389248,1749642645959,-151.0,0.00023,7]
[365389249,1749642645968,-151.0,0.00023,7]
[365389250,1749642645977,-151.0,0.00023,7]
[365389251,1749642645987,-151.0,0.00023,7]
[365389252,1749642645995,-151.0,0.00023,7]
[365389253,1749642646005,-151.0,0.00023,7]
[365389254,1749642646014,-151.0,0.00023,7]
[365389255,1749642646023,-160.0,0.00023,3]
[365389256,1749642646033,-4136.545818,0.00023,2]
[365389257,1749642646043,-4136.545818,0.00023,2]
[365389258,1749642646053,-4136.545818,0.00023,2]
[365389259,1749642646062,-4136.545818,0.00023,2]
[365389260,1749642646071,-4136.545818,0.00023,2]
[365389261,1749642646081,-4136.545818,0.00023,2]
[365389262,1749642646090,-4136.545818,0.00023,2]
[365389263,1749642646101,-4136.545818,0.00023,2]
[365389264,1749642646110,-180.391413,0.00023,7]
[365389265,1749642646119,-180.391413,0.00023,7]
[365389266,1749642646130,-180.391413,0.00023,7]
[365389267,1749642646139,-180.391413,0.00023,7]
[365389268,1749642646148,-180.391413,0.00023,7]
[365389269,1749642646158,-180.391413,0.00023,7]
[365389270,1749642646167,-180.391413,0.00023,7]
[365389271,1749642646176,-180.391413,0.00023,7]
[365389272,1749642646185,-151.0,0.00023,7]
[365389273,1749642646194,-173.344042,0.00023,7]
[365389274,1749642646204,-151.0,0.00023,7]
[365389275,1749642646213,-173.344042,0.00023,7]
[365389276,1749642646223,-151.0,0.00023,7]
[365389277,1749642646233,-173.344042,0.00023,7]
[365389278,1749642646243,-151.0,0.00023,7]
[365389279,1749642646252,-173.344042,0.00023,7]
[365389280,1749642646262,-173.344042,0.00023,7]
[365389281,1749642646271,-173.344042,0.00023,7]
[365389282,1749642646281,-173.344042,0.00023,7]
[365389283,1749642646291,-173.344042,0.00023,7]
[365389284,1749642646301,-639.0,0.00023,2]
[365389285,1749642646311,-160.0,0.00023,3]
[365389286,1749642646321,-844.64040732,0.00023,30]
[365389287,1749642646331,-213.16534259,0.00023,30]
[365389288,1749642646341,-151.0,0.00023,7]
[365389289,1749642646351,-161.054168,0.00023,7]
[365389290,1749642646361,-1131.021748,0.00023,7]
[365389291,1749642646371,-1131.021748,0.00023,7]
[365389292,1749642646380,-1131.021748,0.00023,7]
[365389293,1749642646390,-1131.021748,0.00023,7]
[365389294,1749642646400,-1131.021748,0.00023,7]
[365389295,1749642646410,-1131.021748,0.00023,7]
[365389296,1749642646419,-1131.021748,0.00023,7]
[365389297,1749642646429,-1131.021748,0.00023,7]
[365389298,1749642646439,-151.0,0.00023,7]
[365389299,1749642646448,-151.0,0.00023,7]
[365389300,1749642646458,-151.0,0.00023,7]
[365389301,1749642646467,-151.0,0.00023,7]
[365389302,1749642646476,-151.0,0.00023,7]
[365389303,1749642646486,-180.555044,0.00023,7]
[365389304,1749642646495,-229.71724145,0.00023,3]
[365389305,1749642646505,-160.0,0.00023,3]
[365389306,1749642646515,-835.03886221,0.00023,3]
[365389307,1749642646524,-424.19973472,0.00023,3]
[365389308,1749642646534,-160.0,0.00023,3]
[365389309,1749642646544,-11860.25191276,0.00023,30]
[365389310,1749642646554,-2980.57800506,0.00023003,8]
[365389311,1749642646650,-282.19123117,0.00023006,72]
[365389312,1749642646660,-500.0,0.00023011,8]
[365389313,1749642646669,-500.0,0.00023011,8]
[365389314,1749642646679,-1942.92,0.00023013,4]
[365389315,1749642646688,-460.0,0.00023013,4]
[365389316,1749642646697,-460.0,0.00023013,4]